[Event "Titled Tuesday Blitz July 18 Early 2023"]
[White "ilya2700"]
[Black "Jimenez Almeida, Luis David"]
[BlackFideId "22242244"]
[WhiteElo "2044"]
[BlackElo "2535"]
[Result "0-1"]
[Round "1"]
[TimeControl "180+2"]
[Date "2023.07.18"]
[WhiteClock "0:00:17"]
[BlackClock "0:00:12"]
[Board "211"]

1. e4 {[%clk 0:03:00]}  c5 {[%clk 0:03:00]} 2. c4 {[%clk 0:03:00]}  Nc6 {[%clk 0:02:59]} 3. Ne2 {[%clk 0:03:01]}  e5 {[%clk 0:02:55]} 4. d3 {[%clk 0:03:01]}  g6 {[%clk 0:02:56]} 5. Nbc3 {[%clk 0:03:01]}  Bg7 {[%clk 0:02:56]} 6. g3 {[%clk 0:03:02]}  Nge7 {[%clk 0:02:56]} 7. Bg2 {[%clk 0:03:02]}  d6 {[%clk 0:02:56]} 8. O-O {[%clk 0:03:03]}  O-O {[%clk 0:02:55]} 9. f4 {[%clk 0:03:03]}  a6 {[%clk 0:02:50]} 10. Be3 {[%clk 0:02:59]}  Rb8 {[%clk 0:02:49]} 11. a4 {[%clk 0:02:59]}  Nd4 {[%clk 0:02:47]} 12. Bxd4 {[%clk 0:02:55]}  exd4 {[%clk 0:02:40]} 13. Nd5 {[%clk 0:02:53]}  Nxd5 {[%clk 0:02:31]} 14. cxd5 {[%clk 0:02:51]}  b5 {[%clk 0:02:29]} 15. axb5 {[%clk 0:02:49]}  axb5 {[%clk 0:02:30]} 16. Qd2 {[%clk 0:02:41]}  h5 {[%clk 0:02:19]} 17. h3 {[%clk 0:02:37]}  h4 {[%clk 0:02:13]} 18. g4 {[%clk 0:02:36]}  c4 {[%clk 0:02:08]} 19. dxc4 {[%clk 0:02:31]}  bxc4 {[%clk 0:02:08]} 20. Nxd4 {[%clk 0:02:12]}  Qb6 {[%clk 0:02:05]} 21. Rad1 {[%clk 0:02:12]}  Bd7 {[%clk 0:01:42]} 22. Kh1 {[%clk 0:01:44]}  Ba4 {[%clk 0:01:38]} 23. b3 {[%clk 0:01:41]}  cxb3 {[%clk 0:01:27]} 24. Nc6 {[%clk 0:01:25]}  b2 {[%clk 0:01:08]} 25. Rb1 {[%clk 0:01:22]}  Bxc6 {[%clk 0:01:03]} 26. dxc6 {[%clk 0:01:23]}  Rfd8 {[%clk 0:00:49]} 27. f5 {[%clk 0:01:19]}  Qxc6 {[%clk 0:00:41]} 28. f6 {[%clk 0:01:15]}  Bf8 {[%clk 0:00:37]} 29. Rxb2 {[%clk 0:01:13]}  Rxb2 {[%clk 0:00:33]} 30. Qxb2 {[%clk 0:01:14]}  Qc5 {[%clk 0:00:24]} 31. Qd2 {[%clk 0:01:12]}  Qe5 {[%clk 0:00:21]} 32. Qe3 {[%clk 0:01:08]}  d5 {[%clk 0:00:21]} 33. Rd1 {[%clk 0:01:06]}  d4 {[%clk 0:00:20]} 34. Qd3 {[%clk 0:01:01]}  Bd6 {[%clk 0:00:20]} 35. Kg1 {[%clk 0:00:53]}  Qxf6 {[%clk 0:00:20]} 36. Rf1 {[%clk 0:00:50]}  Qe5 {[%clk 0:00:20]} 37. Qf3 {[%clk 0:00:47]}  Qh2+ {[%clk 0:00:20]} 38. Kf2 {[%clk 0:00:47]}  d3 {[%clk 0:00:19]} 39. Ke1 {[%clk 0:00:46]}  Bb4+ {[%clk 0:00:17]} 40. Kd1 {[%clk 0:00:45]}  Qc7 {[%clk 0:00:18]} 41. Rf2 {[%clk 0:00:41]}  Ra8 {[%clk 0:00:18]} 42. Qf6 {[%clk 0:00:28]}  Bc3 {[%clk 0:00:13]} 43. Qxf7+ {[%clk 0:00:16]}  Qxf7 {[%clk 0:00:12]} 44. Rxf7 {[%clk 0:00:17]}  Ra1# {[%clk 0:00:12]} 0-1


[Site "https://www.chess.com"]

[Event "Titled Tuesday Blitz July 18 Early 2023"]
[White "FoxOnTheRun97"]
[Black "Gyulamiryan-koryun"]
[WhiteElo "2526"]
[BlackElo "1862"]
[Result "1-0"]
[Round "1"]
[TimeControl "180+2"]
[Date "2023.07.18"]
[WhiteClock "0:00:16"]
[BlackClock "0:00:00"]
[Board "220"]

1. b3 {[%clk 0:03:00]}  Nf6 {[%clk 0:02:59]} 2. Bb2 {[%clk 0:03:01]}  g6 {[%clk 0:02:59]} 3. e4 {[%clk 0:02:57]}  d6 {[%clk 0:02:58]} 4. f4 {[%clk 0:02:55]}  Nbd7 {[%clk 0:02:58]} 5. Nf3 {[%clk 0:02:54]}  Bg7 {[%clk 0:02:58]} 6. d3 {[%clk 0:02:45]}  O-O {[%clk 0:02:57]} 7. Be2 {[%clk 0:02:45]}  c5 {[%clk 0:02:54]} 8. O-O {[%clk 0:02:45]}  b5 {[%clk 0:02:53]} 9. a4 {[%clk 0:02:45]}  b4 {[%clk 0:02:50]} 10. Nbd2 {[%clk 0:02:45]}  Bb7 {[%clk 0:02:50]} 11. Nc4 {[%clk 0:02:42]}  a5 {[%clk 0:02:49]} 12. h3 {[%clk 0:02:39]}  Re8 {[%clk 0:02:42]} 13. Qe1 {[%clk 0:02:30]}  Qc7 {[%clk 0:02:40]} 14. Qh4 {[%clk 0:02:22]}  d5 {[%clk 0:02:28]} 15. exd5 {[%clk 0:02:17]}  Bxd5 {[%clk 0:02:25]} 16. Nfe5 {[%clk 0:02:13]}  Rad8 {[%clk 0:02:17]} 17. f5 {[%clk 0:01:54]}  Nxe5 {[%clk 0:01:59]} 18. Bxe5 {[%clk 0:01:55]}  Qa7 {[%clk 0:01:48]} 19. Rae1 {[%clk 0:01:43]}  Qa8 {[%clk 0:01:42]} 20. Bf3 {[%clk 0:01:37]}  Bxf3 {[%clk 0:01:17]} 21. Rxf3 {[%clk 0:01:38]}  Nd5 {[%clk 0:01:16]} 22. fxg6 {[%clk 0:01:32]}  hxg6 {[%clk 0:01:12]} 23. Qf2 {[%clk 0:01:22]}  Bf6 {[%clk 0:01:07]} 24. Qxc5 {[%clk 0:01:14]}  Kg7 {[%clk 0:00:55]} 25. Qxa5 {[%clk 0:01:02]}  Qc6 {[%clk 0:00:55]} 26. Qb5 {[%clk 0:00:57]}  Qa8 {[%clk 0:00:49]} 27. Rff1 {[%clk 0:00:41]}  Bxe5 {[%clk 0:00:39]} 28. Nxe5 {[%clk 0:00:39]}  Nf6 {[%clk 0:00:33]} 29. Nc6 {[%clk 0:00:31]}  Rc8 {[%clk 0:00:28]} 30. Nxe7 {[%clk 0:00:28]}  Rxc2 {[%clk 0:00:25]} 31. Qg5 {[%clk 0:00:28]}  Qa6 {[%clk 0:00:12]} 32. Qxf6+ {[%clk 0:00:18]}  Qxf6 {[%clk 0:00:10]} 33. Rxf6 {[%clk 0:00:19]}  Rxe7 {[%clk 0:00:02]} 34. Rxg6+ {[%clk 0:00:18]}  Kxg6 {[%clk 0:00:01]} 35. Rxe7 {[%clk 0:00:18]}  Rc1+ {[%clk 0:00:01]} 36. Kh2 {[%clk 0:00:18]}  Rc3 {[%clk 0:00:02]} 37. Rb7 {[%clk 0:00:16]}  Rxb3 {[%clk 0:00:02]} 38. d4 {[%clk 0:00:16]}  Ra3 {[%clk 0:00:00]} 39. Rxb4 {[%clk 0:00:16]} 1-0


[Site "https://www.chess.com"]

[Event "Titled Tuesday Blitz July 18 Early 2023"]
[White "Andreev, Konstantin"]
[Black "Da Paz, Leonardo Gadelha"]
[WhiteFideId "24239305"]
[BlackFideId "2109743"]
[WhiteElo "2525"]
[BlackElo "1812"]
[Result "1-0"]
[Round "1"]
[TimeControl "180+2"]
[Date "2023.07.18"]
[WhiteClock "0:02:17"]
[BlackClock "0:01:58"]
[Board "222"]

1. e4 {[%clk 0:03:00]}  c5 {[%clk 0:02:58]} 2. Nf3 {[%clk 0:02:59]}  d6 {[%clk 0:02:59]} 3. d4 {[%clk 0:02:58]}  cxd4 {[%clk 0:03:00]} 4. Nxd4 {[%clk 0:02:58]}  Nf6 {[%clk 0:03:00]} 5. Nc3 {[%clk 0:02:59]}  e6 {[%clk 0:03:00]} 6. g4 {[%clk 0:02:57]}  h6 {[%clk 0:02:59]} 7. h4 {[%clk 0:02:57]}  Nc6 {[%clk 0:02:58]} 8. Rg1 {[%clk 0:02:57]}  a6 {[%clk 0:02:55]} 9. Be3 {[%clk 0:02:49]}  Qc7 {[%clk 0:02:42]} 10. Qd2 {[%clk 0:02:46]}  b5 {[%clk 0:02:42]} 11. a3 {[%clk 0:02:45]}  Bb7 {[%clk 0:02:41]} 12. O-O-O {[%clk 0:02:44]}  Rc8 {[%clk 0:02:40]} 13. Kb1 {[%clk 0:02:43]}  Ne5 {[%clk 0:02:37]} 14. f3 {[%clk 0:02:39]}  Nc4 {[%clk 0:02:37]} 15. Bxc4 {[%clk 0:02:37]}  Qxc4 {[%clk 0:02:36]} 16. g5 {[%clk 0:02:35]}  hxg5 {[%clk 0:02:36]} 17. hxg5 {[%clk 0:02:36]}  Nd7 {[%clk 0:02:35]} 18. g6 {[%clk 0:02:36]}  f6 {[%clk 0:02:29]} 19. f4 {[%clk 0:02:35]}  e5 {[%clk 0:02:27]} 20. Nf5 {[%clk 0:02:34]}  b4 {[%clk 0:02:06]} 21. Nxd6+ {[%clk 0:02:27]}  Bxd6 {[%clk 0:02:05]} 22. Qxd6 {[%clk 0:02:28]}  bxc3 {[%clk 0:02:04]} 23. Qxd7+ {[%clk 0:02:28]}  Kf8 {[%clk 0:02:04]} 24. Bc5+ {[%clk 0:02:17]}  Qxc5 {[%clk 0:01:58]} 25. Qf7# {[%clk 0:02:17]} 1-0


[Site "https://www.chess.com"]

[Event "Titled Tuesday Blitz July 18 Early 2023"]
[White "Kaiyrbekov, Rustam"]
[Black "Mortazavi, Ali"]
[WhiteFideId "13702424"]
[BlackFideId "401323"]
[WhiteElo "1675"]
[BlackElo "2524"]
[Result "0-1"]
[Round "1"]
[TimeControl "180+2"]
[Date "2023.07.18"]
[WhiteClock "0:01:29"]
[BlackClock "0:01:18"]
[Board "223"]

1. d4 {[%clk 0:03:00]}  Nf6 {[%clk 0:02:59]} 2. Nf3 {[%clk 0:03:01]}  g6 {[%clk 0:03:00]} 3. e3 {[%clk 0:03:02]}  Bg7 {[%clk 0:03:00]} 4. c4 {[%clk 0:03:03]}  O-O {[%clk 0:03:01]} 5. Bd3 {[%clk 0:03:04]}  d6 {[%clk 0:03:01]} 6. Nc3 {[%clk 0:03:04]}  Nbd7 {[%clk 0:03:02]} 7. O-O {[%clk 0:03:05]}  e5 {[%clk 0:03:03]} 8. dxe5 {[%clk 0:03:04]}  dxe5 {[%clk 0:03:04]} 9. e4 {[%clk 0:03:04]}  c6 {[%clk 0:03:04]} 10. Be3 {[%clk 0:03:04]}  Qe7 {[%clk 0:03:04]} 11. Qc2 {[%clk 0:03:04]}  Nc5 {[%clk 0:02:54]} 12. Bxc5 {[%clk 0:02:56]}  Qxc5 {[%clk 0:02:54]} 13. a3 {[%clk 0:02:55]}  Bg4 {[%clk 0:02:44]} 14. b4 {[%clk 0:02:54]}  Qe7 {[%clk 0:02:44]} 15. Be2 {[%clk 0:02:47]}  Nh5 {[%clk 0:02:42]} 16. h3 {[%clk 0:02:45]}  Bxf3 {[%clk 0:02:42]} 17. Bxf3 {[%clk 0:02:46]}  Nf4 {[%clk 0:02:42]} 18. Rfd1 {[%clk 0:02:44]}  a5 {[%clk 0:02:37]} 19. b5 {[%clk 0:02:43]}  Rfd8 {[%clk 0:02:34]} 20. a4 {[%clk 0:02:42]}  Ne6 {[%clk 0:02:25]} 21. Ne2 {[%clk 0:02:34]}  h5 {[%clk 0:02:24]} 22. Rxd8+ {[%clk 0:02:24]}  Rxd8 {[%clk 0:02:24]} 23. Rd1 {[%clk 0:02:22]}  Bf8 {[%clk 0:02:16]} 24. Rxd8 {[%clk 0:02:16]}  Qxd8 {[%clk 0:02:16]} 25. g3 {[%clk 0:02:10]}  Bc5 {[%clk 0:02:11]} 26. Kg2 {[%clk 0:02:08]}  f6 {[%clk 0:01:56]} 27. h4 {[%clk 0:01:56]}  Qb6 {[%clk 0:01:51]} 28. Nc3 {[%clk 0:01:46]}  Bd4 {[%clk 0:01:41]} 29. Qd3 {[%clk 0:01:40]}  Qc5 {[%clk 0:01:26]} 30. Qe2 {[%clk 0:01:33]}  Bxc3 {[%clk 0:01:26]} 31. Bxh5 {[%clk 0:01:31]}  gxh5 {[%clk 0:01:22]} 32. Qxh5 {[%clk 0:01:32]}  Ng7 {[%clk 0:01:20]} 33. Qf5 {[%clk 0:01:29]}  Nxf5 {[%clk 0:01:18]} 34. exf5 {[%clk 0:01:29]} 0-1


[Site "https://www.chess.com"]

[Event "Titled Tuesday Blitz July 18 Early 2023"]
[White "Carlsen, Magnus"]
[Black "Iskusnyh, Sergei"]
[WhiteFideId "1503014"]
[BlackFideId "4120027"]
[WhiteElo "3287"]
[BlackElo "2640"]
[Result "1/2-1/2"]
[Round "2"]
[TimeControl "180+2"]
[Date "2023.07.18"]
[WhiteClock "0:00:09"]
[BlackClock "0:00:02"]
[Board "1"]

1. b3 {[%clk 0:03:00]}  d5 {[%clk 0:02:57]} 2. Bb2 {[%clk 0:03:01]}  Bf5 {[%clk 0:02:56]} 3. Nf3 {[%clk 0:02:55]}  e6 {[%clk 0:02:56]} 4. d3 {[%clk 0:02:51]}  h6 {[%clk 0:02:55]} 5. Nbd2 {[%clk 0:02:51]}  Nf6 {[%clk 0:02:54]} 6. g3 {[%clk 0:02:51]}  Be7 {[%clk 0:02:47]} 7. Bg2 {[%clk 0:02:48]}  O-O {[%clk 0:02:46]} 8. O-O {[%clk 0:02:46]}  Bh7 {[%clk 0:02:45]} 9. e4 {[%clk 0:02:43]}  a5 {[%clk 0:02:40]} 10. exd5 {[%clk 0:02:37]}  exd5 {[%clk 0:02:39]} 11. a3 {[%clk 0:02:32]}  Nbd7 {[%clk 0:02:29]} 12. Re1 {[%clk 0:02:31]}  Re8 {[%clk 0:02:25]} 13. Nf1 {[%clk 0:02:31]}  c6 {[%clk 0:02:20]} 14. Bh3 {[%clk 0:02:31]}  Bd6 {[%clk 0:02:07]} 15. Qd2 {[%clk 0:02:31]}  Qc7 {[%clk 0:02:03]} 16. Rxe8+ {[%clk 0:02:16]}  Rxe8 {[%clk 0:02:03]} 17. Bc3 {[%clk 0:02:17]}  b6 {[%clk 0:01:37]} 18. b4 {[%clk 0:02:17]}  axb4 {[%clk 0:01:28]} 19. axb4 {[%clk 0:02:16]}  Ne5 {[%clk 0:01:28]} 20. Nxe5 {[%clk 0:02:14]}  Bxe5 {[%clk 0:01:28]} 21. Bxe5 {[%clk 0:02:09]}  Rxe5 {[%clk 0:01:22]} 22. Qf4 {[%clk 0:02:05]}  Bg6 {[%clk 0:01:02]} 23. Nd2 {[%clk 0:01:21]}  Qe7 {[%clk 0:00:50]} 24. Nf3 {[%clk 0:01:20]}  Re2 {[%clk 0:00:34]} 25. Qb8+ {[%clk 0:01:12]}  Kh7 {[%clk 0:00:33]} 26. Ra8 {[%clk 0:01:09]}  Ne8 {[%clk 0:00:18]} 27. Bf1 {[%clk 0:01:08]}  Re6 {[%clk 0:00:16]} 28. Qxb6 {[%clk 0:01:05]}  Nf6 {[%clk 0:00:09]} 29. Qb8 {[%clk 0:01:02]}  Ne8 {[%clk 0:00:08]} 30. Bh3 {[%clk 0:00:41]}  Re2 {[%clk 0:00:06]} 31. Bg4 {[%clk 0:00:42]}  f5 {[%clk 0:00:04]} 32. Bh3 {[%clk 0:00:39]}  Rxc2 {[%clk 0:00:03]} 33. Qf4 {[%clk 0:00:38]}  Qe2 {[%clk 0:00:03]} 34. Nh4 {[%clk 0:00:16]}  Qd1+ {[%clk 0:00:02]} 35. Kg2 {[%clk 0:00:15]}  Rc1 {[%clk 0:00:03]} 36. Bxf5 {[%clk 0:00:12]}  Qf1+ {[%clk 0:00:02]} 37. Kf3 {[%clk 0:00:12]}  Qd1+ {[%clk 0:00:02]} 38. Ke3 {[%clk 0:00:11]}  Qe1+ {[%clk 0:00:02]} 39. Kf3 {[%clk 0:00:09]}  Qd1+ {[%clk 0:00:02]} 40. Kg2 {[%clk 0:00:08]}  Qf1+ {[%clk 0:00:02]} 41. Kf3 {[%clk 0:00:09]}  Qd1+ {[%clk 0:00:02]} 1/2-1/2


[Site "https://www.chess.com"]

[Event "Titled Tuesday Blitz July 18 Early 2023"]
[White "Ovchinnikov, Vsevolod"]
[Black "Dubov, Daniil"]
[WhiteFideId "24176842"]
[BlackFideId "24126055"]
[WhiteElo "2635"]
[BlackElo "3089"]
[Result "0-1"]
[Round "2"]
[TimeControl "180+2"]
[Date "2023.07.18"]
[WhiteClock "0:00:01"]
[BlackClock "0:01:54"]
[Board "4"]

1. d4 {[%clk 0:03:00]}  Nf6 {[%clk 0:02:58]} 2. c4 {[%clk 0:03:01]}  g6 {[%clk 0:02:58]} 3. Nc3 {[%clk 0:03:00]}  Bg7 {[%clk 0:02:59]} 4. e4 {[%clk 0:02:59]}  d6 {[%clk 0:03:00]} 5. Nf3 {[%clk 0:02:59]}  O-O {[%clk 0:03:00]} 6. h3 {[%clk 0:03:00]}  Re8 {[%clk 0:03:00]} 7. Be3 {[%clk 0:02:55]}  Nc6 {[%clk 0:03:00]} 8. d5 {[%clk 0:02:54]}  Nb4 {[%clk 0:03:00]} 9. a3 {[%clk 0:02:24]}  Na6 {[%clk 0:02:59]} 10. b4 {[%clk 0:02:18]}  e6 {[%clk 0:02:58]} 11. Rc1 {[%clk 0:02:05]}  exd5 {[%clk 0:02:51]} 12. exd5 {[%clk 0:02:06]}  Bh6 {[%clk 0:02:48]} 13. Qd4 {[%clk 0:01:46]}  Nh5 {[%clk 0:02:37]} 14. Nd1 {[%clk 0:01:24]}  f5 {[%clk 0:02:26]} 15. Be2 {[%clk 0:00:25]}  f4 {[%clk 0:02:19]} 16. Bd2 {[%clk 0:00:25]}  Bg7 {[%clk 0:01:55]} 17. Qd3 {[%clk 0:00:18]}  Bf5 {[%clk 0:01:55]} 18. Qb3 {[%clk 0:00:13]}  Qe7 {[%clk 0:01:56]} 19. Ne3 {[%clk 0:00:03]}  fxe3 {[%clk 0:01:55]} 20. Bxe3 {[%clk 0:00:04]}  Nf4 {[%clk 0:01:55]} 21. Rd1 {[%clk 0:00:01]}  Nxg2+ {[%clk 0:01:54]} 0-1


[Site "https://www.chess.com"]

[Event "Titled Tuesday Blitz July 18 Early 2023"]
[White "Mendez Fortes, Eduardo Jesus"]
[Black "Bortnyk, Olexandr"]
[WhiteFideId "3502376"]
[BlackFideId "14120828"]
[WhiteElo "2633"]
[BlackElo "3031"]
[Result "0-1"]
[Round "2"]
[TimeControl "180+2"]
[Date "2023.07.18"]
[WhiteClock "0:00:00"]
[BlackClock "0:00:27"]
[Board "6"]

1. e4 {[%clk 0:02:56]}  Nf6 {[%clk 0:02:59]} 2. e5 {[%clk 0:02:56]}  Nd5 {[%clk 0:02:59]} 3. d4 {[%clk 0:02:56]}  d6 {[%clk 0:02:59]} 4. Nf3 {[%clk 0:02:57]}  dxe5 {[%clk 0:03:00]} 5. Nxe5 {[%clk 0:02:58]}  c6 {[%clk 0:03:00]} 6. Bc4 {[%clk 0:02:57]}  Nd7 {[%clk 0:02:59]} 7. O-O {[%clk 0:02:48]}  Nxe5 {[%clk 0:02:57]} 8. dxe5 {[%clk 0:02:49]}  g6 {[%clk 0:02:54]} 9. h3 {[%clk 0:02:44]}  Bg7 {[%clk 0:02:54]} 10. Re1 {[%clk 0:02:44]}  O-O {[%clk 0:02:54]} 11. Nd2 {[%clk 0:02:43]}  Bf5 {[%clk 0:02:49]} 12. c3 {[%clk 0:02:38]}  Nf4 {[%clk 0:02:35]} 13. Nf3 {[%clk 0:02:18]}  Nd3 {[%clk 0:02:35]} 14. Bxd3 {[%clk 0:02:17]}  Qxd3 {[%clk 0:02:30]} 15. Qxd3 {[%clk 0:02:10]}  Bxd3 {[%clk 0:02:31]} 16. Bg5 {[%clk 0:02:09]}  f6 {[%clk 0:02:22]} 17. Bf4 {[%clk 0:02:07]}  Rad8 {[%clk 0:02:14]} 18. Be3 {[%clk 0:01:46]}  a6 {[%clk 0:01:51]} 19. Bc5 {[%clk 0:01:41]}  Rfe8 {[%clk 0:01:51]} 20. Nd4 {[%clk 0:01:36]}  Rd5 {[%clk 0:01:30]} 21. exf6 {[%clk 0:01:26]}  Bxf6 {[%clk 0:01:31]} 22. b4 {[%clk 0:01:24]}  e5 {[%clk 0:01:25]} 23. Nb3 {[%clk 0:01:20]}  Kf7 {[%clk 0:01:22]} 24. Rad1 {[%clk 0:01:14]}  Bc2 {[%clk 0:01:18]} 25. Rc1 {[%clk 0:01:09]}  Bxb3 {[%clk 0:01:17]} 26. axb3 {[%clk 0:01:10]}  e4 {[%clk 0:01:17]} 27. Rc2 {[%clk 0:00:50]}  Rd3 {[%clk 0:01:17]} 28. Re3 {[%clk 0:00:39]}  Bg5 {[%clk 0:01:12]} 29. Ree2 {[%clk 0:00:34]}  h5 {[%clk 0:01:11]} 30. Bd4 {[%clk 0:00:20]}  Rd1+ {[%clk 0:01:09]} 31. Kh2 {[%clk 0:00:20]}  h4 {[%clk 0:01:10]} 32. g3 {[%clk 0:00:19]}  Re6 {[%clk 0:01:01]} 33. Kg2 {[%clk 0:00:19]}  Ke7 {[%clk 0:00:59]} 34. Bc5+ {[%clk 0:00:17]}  Kd7 {[%clk 0:00:59]} 35. Be3 {[%clk 0:00:16]}  Bf6 {[%clk 0:00:55]} 36. gxh4 {[%clk 0:00:13]}  Rd3 {[%clk 0:00:52]} 37. Bg5 {[%clk 0:00:12]}  Bxc3 {[%clk 0:00:52]} 38. Bf4 {[%clk 0:00:10]}  Ke7 {[%clk 0:00:46]} 39. Re3 {[%clk 0:00:06]}  Rxe3 {[%clk 0:00:45]} 40. fxe3 {[%clk 0:00:06]}  Bxb4 {[%clk 0:00:46]} 41. Kg3 {[%clk 0:00:06]}  b5 {[%clk 0:00:45]} 42. Kg4 {[%clk 0:00:07]}  a5 {[%clk 0:00:44]} 43. h5 {[%clk 0:00:07]}  gxh5+ {[%clk 0:00:45]} 44. Kxh5 {[%clk 0:00:07]}  a4 {[%clk 0:00:46]} 45. bxa4 {[%clk 0:00:07]}  bxa4 {[%clk 0:00:46]} 46. Rc4 {[%clk 0:00:07]}  c5 {[%clk 0:00:46]} 47. Kg5 {[%clk 0:00:06]}  a3 {[%clk 0:00:47]} 48. Rc2 {[%clk 0:00:07]}  c4 {[%clk 0:00:40]} 49. h4 {[%clk 0:00:03]}  Ra6 {[%clk 0:00:36]} 50. Ra2 {[%clk 0:00:03]}  c3 {[%clk 0:00:36]} 51. Be5 {[%clk 0:00:02]}  Ke6 {[%clk 0:00:34]} 52. Bd4 {[%clk 0:00:03]}  Kd5 {[%clk 0:00:35]} 53. h5 {[%clk 0:00:03]}  Kc4 {[%clk 0:00:34]} 54. Kf5 {[%clk 0:00:03]}  Kb3 {[%clk 0:00:33]} 55. Ra1 {[%clk 0:00:04]}  c2 {[%clk 0:00:27]} 56. h6 {[%clk 0:00:00]}  Rxh6 {[%clk 0:00:27]} 0-1


[Site "https://www.chess.com"]

[Event "Titled Tuesday Blitz July 18 Early 2023"]
[White "Bluebaum, Matthias"]
[Black "Komov, Roman"]
[WhiteFideId "24651516"]
[BlackFideId "24175714"]
[WhiteElo "3029"]
[BlackElo "2631"]
[Result "0-1"]
[Round "2"]
[TimeControl "180+2"]
[Date "2023.07.18"]
[WhiteClock "0:00:02"]
[BlackClock "0:00:03"]
[Board "7"]

1. d4 {[%clk 0:03:00]}  Nf6 {[%clk 0:03:00]} 2. c4 {[%clk 0:03:01]}  e6 {[%clk 0:03:00]} 3. Nc3 {[%clk 0:03:00]}  Bb4 {[%clk 0:03:00]} 4. e3 {[%clk 0:03:00]}  O-O {[%clk 0:03:01]} 5. Bd2 {[%clk 0:03:00]}  c5 {[%clk 0:03:01]} 6. a3 {[%clk 0:02:58]}  Bxc3 {[%clk 0:03:00]} 7. Bxc3 {[%clk 0:02:59]}  Ne4 {[%clk 0:03:01]} 8. Ne2 {[%clk 0:03:00]}  b6 {[%clk 0:02:58]} 9. d5 {[%clk 0:03:00]}  Nxc3 {[%clk 0:02:54]} 10. Nxc3 {[%clk 0:03:00]}  d6 {[%clk 0:02:55]} 11. Be2 {[%clk 0:02:56]}  e5 {[%clk 0:02:54]} 12. O-O {[%clk 0:02:53]}  f5 {[%clk 0:02:52]} 13. b4 {[%clk 0:02:51]}  Nd7 {[%clk 0:02:50]} 14. Rb1 {[%clk 0:02:49]}  Nf6 {[%clk 0:02:35]} 15. bxc5 {[%clk 0:02:49]}  bxc5 {[%clk 0:02:33]} 16. Qa4 {[%clk 0:02:48]}  Qd7 {[%clk 0:02:07]} 17. Qc6 {[%clk 0:02:40]}  Qxc6 {[%clk 0:01:57]} 18. dxc6 {[%clk 0:02:41]}  Ba6 {[%clk 0:01:57]} 19. Rfd1 {[%clk 0:02:37]}  Rad8 {[%clk 0:01:36]} 20. a4 {[%clk 0:02:21]}  d5 {[%clk 0:01:23]} 21. c7 {[%clk 0:01:58]}  Rd7 {[%clk 0:01:22]} 22. Nxd5 {[%clk 0:01:58]}  Nxd5 {[%clk 0:01:14]} 23. Rxd5 {[%clk 0:01:59]}  Rxc7 {[%clk 0:01:06]} 24. Rxe5 {[%clk 0:01:59]}  Rd8 {[%clk 0:01:07]} 25. Rxf5 {[%clk 0:01:58]}  g6 {[%clk 0:01:06]} 26. Re5 {[%clk 0:01:56]}  Rd2 {[%clk 0:01:05]} 27. Bf1 {[%clk 0:01:53]}  Ra2 {[%clk 0:00:59]} 28. h4 {[%clk 0:01:19]}  Rxa4 {[%clk 0:00:59]} 29. Rc1 {[%clk 0:01:19]}  Ra2 {[%clk 0:00:34]} 30. h5 {[%clk 0:01:20]}  Kg7 {[%clk 0:00:34]} 31. g4 {[%clk 0:01:14]}  Bc8 {[%clk 0:00:31]} 32. f3 {[%clk 0:01:06]}  a5 {[%clk 0:00:24]} 33. Rb1 {[%clk 0:00:56]}  a4 {[%clk 0:00:21]} 34. Rb5 {[%clk 0:00:56]}  Bb7 {[%clk 0:00:15]} 35. e4 {[%clk 0:00:35]}  a3 {[%clk 0:00:15]} 36. Ra5 {[%clk 0:00:35]}  Ra1 {[%clk 0:00:14]} 37. Ra7 {[%clk 0:00:32]}  a2 {[%clk 0:00:13]} 38. Kf2 {[%clk 0:00:32]}  Rf7 {[%clk 0:00:13]} 39. Rxc5 {[%clk 0:00:20]}  Bxe4 {[%clk 0:00:12]} 40. Rxf7+ {[%clk 0:00:21]}  Kxf7 {[%clk 0:00:13]} 41. Ra5 {[%clk 0:00:22]}  Bxf3 {[%clk 0:00:11]} 42. h6 {[%clk 0:00:18]}  Bxg4 {[%clk 0:00:11]} 43. Bg2 {[%clk 0:00:15]}  Be6 {[%clk 0:00:10]} 44. Bd5 {[%clk 0:00:13]}  Bxd5 {[%clk 0:00:06]} 45. cxd5 {[%clk 0:00:14]}  Ke7 {[%clk 0:00:07]} 46. Kg2 {[%clk 0:00:12]}  Kd6 {[%clk 0:00:07]} 47. Kh2 {[%clk 0:00:13]}  g5 {[%clk 0:00:06]} 48. Kg2 {[%clk 0:00:13]}  g4 {[%clk 0:00:07]} 49. Kh2 {[%clk 0:00:14]}  g3+ {[%clk 0:00:07]} 50. Kg2 {[%clk 0:00:14]}  Ke5 {[%clk 0:00:07]} 51. Ra8 {[%clk 0:00:07]}  Kxd5 {[%clk 0:00:06]} 52. Ra7 {[%clk 0:00:06]}  Ke5 {[%clk 0:00:06]} 53. Ra8 {[%clk 0:00:06]}  Kf6 {[%clk 0:00:06]} 54. Ra6+ {[%clk 0:00:06]}  Kg5 {[%clk 0:00:07]} 55. Ra5+ {[%clk 0:00:03]}  Kxh6 {[%clk 0:00:06]} 56. Ra6+ {[%clk 0:00:04]}  Kg5 {[%clk 0:00:07]} 57. Ra5+ {[%clk 0:00:04]}  Kf4 {[%clk 0:00:07]} 58. Ra4+ {[%clk 0:00:05]}  Ke5 {[%clk 0:00:07]} 59. Ra5+ {[%clk 0:00:05]}  Kd4 {[%clk 0:00:07]} 60. Ra4+ {[%clk 0:00:05]}  Kc5 {[%clk 0:00:07]} 61. Ra8 {[%clk 0:00:06]}  h5 {[%clk 0:00:07]} 62. Rc8+ {[%clk 0:00:07]}  Kb6 {[%clk 0:00:07]} 63. Rb8+ {[%clk 0:00:08]}  Kc7 {[%clk 0:00:07]} 64. Ra8 {[%clk 0:00:08]}  h4 {[%clk 0:00:07]} 65. Ra7+ {[%clk 0:00:07]}  Kb6 {[%clk 0:00:07]} 66. Rh7 {[%clk 0:00:03]}  h3+ {[%clk 0:00:07]} 67. Rxh3 {[%clk 0:00:03]}  Rg1+ {[%clk 0:00:07]} 68. Kxg1 {[%clk 0:00:03]}  a1=Q+ {[%clk 0:00:08]} 69. Kg2 {[%clk 0:00:04]}  Kc5 {[%clk 0:00:07]} 70. Rxg3 {[%clk 0:00:04]}  Kd4 {[%clk 0:00:08]} 71. Rf3 {[%clk 0:00:03]}  Ke4 {[%clk 0:00:08]} 72. Rf2 {[%clk 0:00:04]}  Qg7+ {[%clk 0:00:07]} 73. Kf1 {[%clk 0:00:04]}  Qg4 {[%clk 0:00:07]} 74. Re2+ {[%clk 0:00:04]}  Kd3 {[%clk 0:00:07]} 75. Rf2 {[%clk 0:00:02]}  Ke3 {[%clk 0:00:08]} 76. Rf8 {[%clk 0:00:01]}  Qd1+ {[%clk 0:00:07]} 77. Kg2 {[%clk 0:00:02]}  Qd5+ {[%clk 0:00:08]} 78. Kf1 {[%clk 0:00:01]}  Qb5+ {[%clk 0:00:08]} 79. Kg2 {[%clk 0:00:01]}  Qg5+ {[%clk 0:00:08]} 80. Kf1 {[%clk 0:00:02]}  Qb5+ {[%clk 0:00:08]} 81. Kg2 {[%clk 0:00:02]}  Qc6+ {[%clk 0:00:09]} 82. Kg1 {[%clk 0:00:02]}  Qg6+ {[%clk 0:00:08]} 83. Kf1 {[%clk 0:00:02]}  Qc6 {[%clk 0:00:05]} 84. Kg1 {[%clk 0:00:01]}  Qg6+ {[%clk 0:00:03]} 85. Kf1 {[%clk 0:00:02]}  Qh6 {[%clk 0:00:04]} 86. Re8+ {[%clk 0:00:01]}  Kf3 {[%clk 0:00:04]} 87. Ke1 {[%clk 0:00:02]}  Qc1# {[%clk 0:00:03]} 0-1


[Site "https://www.chess.com"]